fUST/lending_fUST_20240917
["ID","MTS","AMOUNT","RATE_DAILY","PERIOD"]
[338362789,1726563043279,-151.0,0.00018983,2]
[338362792,1726563043288,-1242.952283,0.00018983,2]
[338362794,1726563043297,-343.646866,0.00018983,2]
[338362796,1726563043307,-1242.952283,0.00018983,2]
[338362798,1726563043318,-343.646866,0.00018983,2]
[338362799,1726563043327,-151.0,0.00018983,2]
[338362800,1726563043338,-151.0,0.00018983,2]
[338362802,1726563043349,-761.873196,0.00018983,2]
[338362804,1726563043361,-761.873196,0.00018983,2]
[338362806,1726563043373,-1000.0,0.00018983,2]
[338362808,1726563043385,-422.1249203,0.00018983,2]
[338362809,1726563043394,-208.6350023,0.00018983,2]
[338362810,1726563043404,-205.2909983,0.00018983,2]
[338362811,1726563043414,-154.03403662,0.00018989,2]
[338362813,1726563043424,-4098.02267834,0.00018989,2]
[338362815,1726563043436,-7322.21025558,0.00019,5]
[338362817,1726563043447,-854.14924955,0.00019,2]
[338362819,1726563043457,-1000.01661326,0.00019,2]
[338362820,1726563043467,-12906.91631862,0.00019,2]
[338362821,1726563043476,-1240.35538214,0.00019,2]
[338362822,1726563043485,-1000.0,0.00019,19]
[338362823,1726563043495,-151286.65874117,0.00019,7]
[338362825,1726563043504,-152.083553,0.00019,2]
[338362827,1726563043514,-150.112233,0.00019,2]
[338362829,1726563043524,-279.470345,0.00019,2]
[338362831,1726563043533,-150.112233,0.00019,2]
[338362833,1726563043544,-1517.510166,0.00019,2]
[338362835,1726563043554,-1517.510166,0.00019,2]
[338362836,1726563043564,-1517.510166,0.00019,2]
[338362837,1726563043574,-1517.510166,0.00019,2]
[338362838,1726563043583,-151.0,0.00019,2]
[338362839,1726563043592,-151.0,0.00019,2]
[338362840,1726563043607,-161.103146,0.00019,2]
[338362841,1726563043616,-161.103146,0.00019,2]
[338362842,1726563043626,-161.103146,0.00019,2]
[338362843,1726563043635,-161.103146,0.00019,2]
[338362844,1726563043646,-151.0,0.00019,2]
[338362845,1726563043655,-151.0,0.00019,2]
[338362846,1726563043665,-151.0,0.00019,2]
[338362847,1726563043674,-151.0,0.00019,2]
[338362848,1726563043684,-151.0,0.00019,2]
[338362849,1726563043693,-151.0,0.00019,2]
[338362850,1726563043702,-197.087297,0.00019,2]
[338362851,1726563043711,-197.087297,0.00019,2]
[338362852,1726563043721,-197.087297,0.00019,2]
[338362853,1726563043730,-197.087297,0.00019,2]
[338362854,1726563043740,-197.087297,0.00019,2]
[338362855,1726563043751,-197.087297,0.00019,2]
[338362856,1726563043763,-151.0,0.00019,2]
[338362857,1726563043773,-151.0,0.00019,2]
[338362858,1726563043784,-151.0,0.00019,2]
[338362859,1726563043795,-151.0,0.00019,2]
[338362860,1726563043806,-151.0,0.00019,2]
[338362861,1726563043815,-151.0,0.00019,2]
[338362862,1726563043824,-3002.77900404,0.00019,2]
[338362863,1726563043834,-151.0,0.00019,2]
[338362864,1726563043844,-151.0,0.00019,2]
[338362865,1726563043855,-151.0,0.00019,2]
[338362866,1726563043866,-1362.943941,0.00019,2]
[338362867,1726563043877,-1362.943941,0.00019,2]
[338362868,1726563043888,-225.95284,0.00019,2]
[338362869,1726563043900,-151.0,0.00019,2]
[338362870,1726563043910,-225.95284,0.00019,2]
[338362871,1726563043919,-150.112233,0.00019,2]
[338362872,1726563043928,-151.0,0.00019,2]
[338362873,1726563043938,-151.0,0.00019,2]
[338362874,1726563043948,-218.467348,0.00019,2]
[338362875,1726563043957,-218.467348,0.00019,2]
[338362876,1726563043966,-3000.0,0.00019,2]
[338362877,1726563043976,-4100.89585,0.00019,2]
[338362878,1726563043988,-4100.89585,0.00019,2]
[338362879,1726563043999,-151.0,0.00019,2]
[338362880,1726563044010,-151.0,0.00019,2]
[338362881,1726563044020,-151.0,0.00019,2]
[338362882,1726563044029,-151.0,0.00019,2]
[338362883,1726563044039,-3340.615745,0.00019,2]
[338362884,1726563044050,-3340.615745,0.00019,2]
[338362885,1726563044060,-216.000132,0.00019,2]
[338362886,1726563044071,-216.000132,0.00019,2]
[338362887,1726563044083,-154.546477,0.00019,2]
[338362888,1726563044092,-154.546477,0.00019,2]
[338362889,1726563044103,-265.696421,0.00019,2]
[338362890,1726563044115,-265.696421,0.00019,2]
[338362891,1726563044127,-1179.114828,0.00019,2]
[338362892,1726563044138,-1179.114828,0.00019,2]
[338362893,1726563044149,-674.625809,0.00019,2]
[338362894,1726563044160,-151.0,0.00019,2]
[338362895,1726563044169,-674.625809,0.00019,2]
[338362896,1726563044179,-151.0,0.00019,2]
[338362897,1726563044189,-151.0,0.00019,2]
[338362898,1726563044198,-151.0,0.00019,2]
[338362899,1726563044207,-151.0,0.00019,2]
[338362900,1726563044216,-1242.952283,0.00019,2]
[338362901,1726563044226,-2018.701252,0.00019,2]
[338362902,1726563044235,-343.646866,0.00019,2]
[338362903,1726563044244,-2018.701252,0.00019,2]
[338362904,1726563044253,-1242.952283,0.00019,2]
[338362905,1726563044266,-343.646866,0.00019,2]
[338362906,1726563044275,-151.0,0.00019,2]
[338362907,1726563044284,-151.0,0.00019,2]
[338362908,1726563044293,-150.112233,0.00019,2]
[338362909,1726563044302,-4006.995023,0.00019,2]
[338362910,1726563044312,-4006.995023,0.00019,2]
[338362911,1726563044321,-761.873196,0.00019,2]
[338362912,1726563044331,-761.873196,0.00019,2]
[338362913,1726563044341,-172.813276,0.00019,2]
[338362914,1726563044351,-617.0,0.00019,2]
[338362915,1726563044360,-946.229752,0.00019,2]
[338362916,1726563044369,-946.229752,0.00019,2]
[338362917,1726563044378,-946.229752,0.00019,2]
[338362918,1726563044387,-946.229752,0.00019,2]
[338362919,1726563044397,-151.0,0.00019,2]
[338362920,1726563044406,-151.0,0.00019,2]
[338362921,1726563044414,-151.0,0.00019,2]
[338362922,1726563044424,-151.0,0.00019,2]
[338362923,1726563044433,-151.0,0.00019,2]
[338362924,1726563044442,-151.0,0.00019,2]
[338362925,1726563044452,-180.353636,0.00019,2]
[338362926,1726563044462,-180.353636,0.00019,2]
[338362927,1726563044471,-180.353636,0.00019,2]
[338362928,1726563044480,-180.353636,0.00019,2]
[338362929,1726563044489,-1252.124363,0.00019,2]
[338362930,1726563044499,-1252.124363,0.00019,2]
[338362931,1726563044508,-1252.124363,0.00019,2]
[338362932,1726563044517,-1252.124363,0.00019,2]
[338362933,1726563044526,-1205.505517,0.00019,2]
[338362934,1726563044535,-1205.505517,0.00019,2]
[338362935,1726563044544,-1205.505517,0.00019,2]
[338362936,1726563044554,-1205.505517,0.00019,2]
[338362937,1726563044563,-151.0,0.00019,2]
[338362938,1726563044574,-151.0,0.00019,2]
[338362939,1726563044583,-215.88256,0.00019,2]
[338362941,1726563044593,-695.344994,0.00019,2]
[338362942,1726563044603,-695.344994,0.00019,2]
[338362944,1726563044613,-695.344994,0.00019,2]
[338362945,1726563044622,-695.344994,0.00019,2]
[338362947,1726563044631,-569.178045,0.00019,2]
[338362949,1726563044643,-569.178045,0.00019,2]
[338362951,1726563044653,-221.725199,0.00019,2]
[338362953,1726563044662,-221.725199,0.00019,2]
[338362955,1726563044671,-151.0,0.00019,2]
[338362956,1726563044681,-221.725199,0.00019,2]
[338362957,1726563044690,-221.725199,0.00019,2]
[338362958,1726563044699,-151.0,0.00019,2]
[338362959,1726563044709,-569.178045,0.00019,2]
[338362960,1726563044719,-569.178045,0.00019,2]
[338362961,1726563044728,-150.0,0.00019,2]
[338362962,1726563044738,-232.359803,0.00019,2]
[338362963,1726563044747,-232.359803,0.00019,2]
[338362964,1726563044757,-232.359803,0.00019,2]
[338362966,1726563044767,-232.359803,0.00019,2]
[338362967,1726563044777,-191.548085,0.00019,2]
[338362968,1726563044785,-191.548085,0.00019,2]
[338362969,1726563044795,-151.0,0.00019,2]
[338362970,1726563044804,-191.548085,0.00019,2]
[338362971,1726563044814,-191.548085,0.00019,2]
[338362972,1726563044823,-300.320195,0.00019,2]
[338362973,1726563044833,-300.896589,0.00019,2]
[338362974,1726563044843,-300.320195,0.00019,2]
[338362975,1726563044852,-1517.510166,0.0001901,2]
[338362976,1726563044862,-1517.510166,0.0001901,2]
[338362977,1726563045029,-152.300063,0.0001901,2]
[338362978,1726563045040,-161.103146,0.0001901,2]
[338362979,1726563045050,-161.103146,0.0001901,2]
[338362980,1726563045059,-3000.0,0.0001901,2]
[338362981,1726563045069,-3000.0,0.0001902,2]
[338362982,1726563045083,-150.0,0.00019027,2]
[338362983,1726563045094,-3000.0,0.0001903,2]
[338362984,1726563045105,-3000.0,0.0001904,2]
[338362985,1726563045114,-151.0,0.0001905,2]
[338362986,1726563045124,-151.0,0.0001905,2]
[338362987,1726563045133,-300.487249,0.0001905,2]
[338362988,1726563045143,-284.055546,0.0001905,2]
[338362989,1726563045152,-284.055546,0.0001905,2]
[338362990,1726563045162,-172.792366,0.0001905,2]
[338362991,1726563045172,-172.792366,0.0001905,2]
[338362992,1726563045182,-151.0,0.0001905,2]
[338362993,1726563045192,-151.0,0.0001905,2]
[338362994,1726563045202,-2022.689401,0.0001905,2]
[338362995,1726563045212,-2022.689401,0.0001905,2]
[338362996,1726563045222,-636.360571,0.0001905,2]
[338362997,1726563045232,-636.360571,0.0001905,2]
[338362998,1726563045241,-3000.0,0.0001905,2]
[338362999,1726563045251,-505.581708,0.0001905,2]
[338363000,1726563045260,-150.0,0.00019055,2]
[338363001,1726563045270,-1362.943941,0.0001906,2]
[338363002,1726563045279,-1362.943941,0.0001906,2]
[338363003,1726563045288,-225.95284,0.0001906,2]
[338363004,1726563045298,-151.0,0.0001906,2]
[338363005,1726563045308,-225.95284,0.0001906,2]
[338363006,1726563045317,-151.0,0.0001906,2]
[338363007,1726563045327,-151.0,0.0001906,2]
[338363008,1726563045337,-218.467348,0.0001906,2]
[338363009,1726563045346,-218.467348,0.0001906,2]
[338363010,1726563045356,-3000.0,0.0001906,2]
[338363011,1726563045366,-4100.89585,0.0001906,2]
[338363012,1726563045376,-4100.89585,0.0001906,2]
[338363013,1726563045386,-151.0,0.0001906,2]
[338363014,1726563045395,-151.0,0.0001906,2]
[338363015,1726563045404,-151.0,0.0001906,2]
[338363016,1726563045414,-151.0,0.0001906,2]
[338363017,1726563045423,-3340.615745,0.0001906,2]
[338363018,1726563045433,-3340.615745,0.0001906,2]
[338363019,1726563045443,-216.000132,0.0001906,2]
[338363020,1726563045453,-216.000132,0.0001906,2]
[338363021,1726563045462,-154.546477,0.0001906,2]
[338363022,1726563045472,-154.546477,0.0001906,2]
[338363023,1726563045482,-265.696421,0.0001906,2]
[338363024,1726563045492,-265.696421,0.0001906,2]
[338363025,1726563045501,-1179.114828,0.0001906,2]
[338363026,1726563045511,-1179.114828,0.0001906,2]
[338363027,1726563045521,-674.625809,0.0001906,2]
[338363028,1726563045531,-674.625809,0.0001906,2]
[338363029,1726563045540,-151.0,0.0001906,2]
[338363030,1726563045550,-151.0,0.0001906,2]
[338363031,1726563045560,-151.0,0.0001906,2]
[338363032,1726563045569,-1242.952283,0.0001906,2]
[338363034,1726563045579,-2018.701252,0.0001906,2]
[338363035,1726563045589,-2018.701252,0.0001906,2]
[338363036,1726563045599,-1242.952283,0.0001906,2]
[338363037,1726563045609,-4006.995023,0.0001906,2]
[338363038,1726563045618,-4006.995023,0.0001906,2]
[338363039,1726563045627,-3000.0,0.0001907,2]
[338363041,1726563045637,-3000.0,0.0001908,2]
[338363042,1726563045646,-150.0,0.00019082,2]
[338363043,1726563045656,-3000.0,0.0001909,2]
[338363044,1726563045665,-3000.0,0.000191,2]
[338363045,1726563045674,-150.0,0.0001911,2]
[338363046,1726563045684,-3000.0,0.0001911,2]
[338363048,1726563045694,-151.0,0.0001912,2]
[338363049,1726563045703,-3000.0,0.0001912,2]
[338363050,1726563045713,-3000.0,0.0001913,2]
[338363051,1726563045723,-219.15823167,0.00019137,2]
[338363052,1726563045734,-3000.0,0.0001914,2]
[338363053,1726563045745,-3000.0,0.0001915,2]
[338363055,1726563045758,-151.0,0.0001915,2]
[338363056,1726563045767,-300.320195,0.0001915,2]
[338363057,1726563045777,-300.320195,0.0001915,2]
[338363058,1726563045786,-3000.0,0.0001916,2]
[338363060,1726563045797,-151.0,0.0001917,2]
[338363061,1726563045808,-151.0,0.0001917,2]
[338363062,1726563045819,-197.087297,0.0001917,2]
[338363063,1726563045828,-197.087297,0.0001917,2]
[338363064,1726563045838,-151.0,0.0001917,2]
[338363065,1726563045848,-151.0,0.0001917,2]
[338363066,1726563045859,-151.0,0.0001917,2]
[338363067,1726563045868,-151.0,0.0001917,2]
[338363068,1726563045877,-151.0,0.0001917,2]
[338363069,1726563045887,-1346.45352433,0.0001917,2]
[338363072,1726563047358,-423.35897858,0.0001917,2]
[338363077,1726563310535,201.249344,0.00013699,2]
[338363081,1726563434211,2828.0,0.0001918,120]
[338363082,1726563434764,2828.0,0.0001917,120]
[338363083,1726563435217,2828.0,0.0001916,120]
[338363084,1726563435694,2828.0,0.0002157,120]
[338363085,1726563436175,2828.0,0.0002156,120]
[338363086,1726563437084,2828.0,0.0002155,120]
[338363087,1726563437319,2828.0,0.0002489,120]
[338363088,1726563437804,2828.0,0.0002488,120]
[338363092,1726563555182,565.0,0.0001915,120]
[338363093,1726563556253,565.0,0.0001914,120]
[338363094,1726563556799,565.0,0.0001913,120]
[338363095,1726563557299,565.0,0.0002157,120]
[338363096,1726563557799,565.0,0.0002156,120]
[338363097,1726563558273,565.0,0.0002155,120]
[338363098,1726563558743,565.0,0.0002489,120]
[338363099,1726563559215,565.0,0.0002488,120]
[338363100,1726563675303,150.5,0.0001915,120]
[338363101,1726563675794,150.5,0.0001914,120]
[338363102,1726563676345,150.5,0.0001913,120]
[338363103,1726563676848,150.5,0.00021563,120]
[338363104,1726563677343,150.5,0.00021553,120]
[338363105,1726563678419,150.5,0.00021543,120]
[338363106,1726563679206,236.33,0.0002489,120]
[338363108,1726563799497,191.186876,0.00013699,2]
[338363110,1726564039115,-183.79302,0.000158,2]
[338363111,1726564039136,-516.05073927,0.00016214,2]
[338363112,1726564039166,-580.46673821,0.00016214,2]
[338363113,1726564039187,-164.645155,0.00016758,2]
[338363114,1726564039209,-300.0,0.00016854,2]
[338363115,1726564039231,-300.0,0.00016854,2]
[338363116,1726564039253,-158.56913139,0.00016855,2]
[338363117,1726564146582,-176.92491339,0.00016854,2]
[338363147,1726564232392,-300.0,0.00016854,2]
[338363150,1726564232402,-205.59084748,0.00016854,2]
[338363152,1726564232415,-94.40915252,0.00016854,2]
[338363154,1726564232426,-928.3523539,0.00016855,2]
[338363162,1726564232488,-23813.07851471,0.00016855,2]
[338363164,1726564232498,-183.332058,0.00017245,2]
[338363166,1726564232507,-183.332058,0.00017545,2]
[338363168,1726564232516,-250.0,0.00017578,2]
[338363170,1726564232526,-183.332058,0.00017844,2]
[338363172,1726564232536,-183.332058,0.00018144,2]
[338363175,1726564232548,-420.0,0.00018411,2]
[338363177,1726564232558,-420.0,0.00018539,2]
[338363179,1726564232567,-5209.82059793,0.00018777,2]
[338363181,1726564232577,-7135.3120227,0.00018792,2]
[338363183,1726564232587,-153.0,0.00018877,2]
[338363185,1726564232596,-153.0,0.00018877,2]
[338363187,1726564232606,-153.0,0.00018877,2]
[338363189,1726564232617,-306.0,0.00018877,2]
[338363191,1726564232628,-910.506099,0.0001888,2]
[338363193,1726564232637,-910.506099,0.0001888,2]
[338363195,1726564232647,-464.148,0.00018897,2]
[338363197,1726564232656,-1000.0,0.000189,2]
[338363199,1726564232666,-1000.0,0.00018917,2]
[338363202,1726564232676,-1000.0,0.00018932,2]
[338363204,1726564232687,-1000.0,0.0001894,2]
[338363206,1726564232696,-1000.0,0.00018942,2]
[338363208,1726564232706,-192.0,0.0001895,2]
[338363210,1726564232715,-1000.0,0.00018954,2]
[338363211,1726564232724,-1000.0,0.00018962,2]
[338363212,1726564232733,-1000.0,0.00018969,2]
[338363213,1726564232742,-329.5,0.00018969,2]
[338363214,1726564232752,-382.96,0.00018973,3]
[338363215,1726564232762,-8376.0140181,0.00018983,3]
[338363216,1726564232775,-2130.3685832,0.00018983,3]
[338363295,1726564246396,-3987.7604177,0.00018983,3]
[338363297,1726564246423,-820.7275392,0.00018983,3]
[338363305,1726564324664,166.42496612,0.0001401,2]
[338363306,1726564324686,234.87507978,0.0001401,2]
[338363307,1726564324707,210.4893824,0.0001401,2]
[338363308,1726564324739,6389.9195717,0.0001401,2]
[338363311,1726564449258,189.557591,0.00013699,2]
[338363319,1726565011109,180.079711,0.00013699,2]
[338363354,1726565432559,-164.52440045,0.00017035,2]
[338363356,1726565432569,-300.0,0.00017135,2]
[338363358,1726565432578,-300.0,0.00017135,2]
[338363359,1726565432588,-576.25033288,0.00017136,2]
[338363400,1726565583505,2121.3968607,0.00025,60]
[338363521,1726565607834,500.0,0.00026,120]
[338363534,1726565608313,500.0,0.00026,120]
[338363536,1726565608374,871.9,0.00026,120]
[338363540,1726565608491,500.0,0.00026,120]
[338363542,1726565608536,500.0,0.00026,120]
[338363556,1726565609317,382.23077503,0.00026,120]
[338363559,1726565609561,1620.07,0.00026,120]
[338363560,1726565609603,665.51,0.00026,120]
[338363563,1726565609650,500.0,0.00026,120]
[338363567,1726565610609,500.0,0.00026,120]
[338363579,1726565610999,1813.01,0.00026,120]
[338363584,1726565611180,1000.0,0.00026,120]
[338363587,1726565611236,500.0,0.00026,120]
[338363593,1726565611539,500.0,0.00026,120]
[338363598,1726565611817,1443.81,0.00026,120]
[338363601,1726565612053,1811.25,0.00026,120]
[338363606,1726565612436,4824.99,0.00026,120]
[338363610,1726565612802,500.0,0.00026,120]
[338363617,1726565613508,2643.71,0.00026,120]
[338363618,1726565613542,748.16,0.00026,120]
[338363620,1726565613659,589.91,0.00026,120]
[338363643,1726565615294,501.39689532,0.00026,120]
[338363648,1726565615450,500.0,0.00026,120]
[338363663,1726565616068,500.0,0.00026,120]
[338363672,1726565616632,500.0,0.00026,120]
[338363687,1726565617261,865.75,0.00026,120]
[338363702,1726565618030,500.63439399,0.00026,120]
[338363731,1726565619585,500.0,0.00026,120]
[338363739,1726565619891,500.0,0.00026,120]
[338363747,1726565620364,664.39,0.00026,120]
[338363750,1726565620426,500.0,0.00026,120]
[338363753,1726565620658,988.83,0.00026,120]
[338363760,1726565621536,500.0,0.00026,120]
[338363777,1726565622631,500.0,0.00026,120]
[338363782,1726565622824,715.81,0.00026,120]
[338363785,1726565623178,500.0,0.00026,120]
[338363786,1726565623285,154.26538698,0.00026,120]
[338363788,1726565623328,500.0,0.00026,120]
[338363810,1726565624525,1601.81,0.00026,120]
[338363834,1726565625575,896.49,0.00026,120]
[338363840,1726565626137,1533.54,0.00026,120]
[338363842,1726565626191,500.0,0.00026,120]
[338363849,1726565626867,2694.22,0.00026,120]
[338363850,1726565626908,500.0,0.00026,120]
[338363853,1726565627189,500.0,0.00026,120]
[338363879,1726565628694,3669.32,0.00026,120]
[338363904,1726565629974,500.0,0.00026,120]
[338363913,1726565630308,500.0,0.00026,120]
[338363916,1726565630530,500.0,0.00026,120]
[338363924,1726565630924,500.0,0.00026,120]
[338363931,1726565631324,1497.8,0.00026,120]
[338363934,1726565632121,838.65,0.00026,120]
[338363944,1726565632781,503.14025399,0.00026,120]
[338363948,1726565632917,2628.0,0.00026,120]
[338363974,1726565635358,610.02,0.00026,120]
[338363976,1726565635404,500.0,0.00026,120]
[338363988,1726565635961,500.0,0.00026,120]
[338363997,1726565636690,500.0,0.00026,120]
[338363999,1726565636758,500.0,0.00026,120]
[338364021,1726565638148,500.0,0.00026,120]
[338364025,1726565638446,500.0,0.00026,120]
[338364039,1726565639289,1378.94,0.00026,120]
[338364040,1726565639355,500.0,0.00026,120]
[338364042,1726565639387,1378.94,0.00026,120]
[338364046,1726565639483,1378.94,0.00026,120]
[338364050,1726565639592,1378.94,0.00026,120]
[338364057,1726565639906,1378.94,0.00026,120]
[338364059,1726565639967,500.0,0.00026,120]
[338364064,1726565640189,1378.94,0.00026,120]
[338364068,1726565640513,1378.94,0.00026,120]
[338364069,1726565640566,502.04497304,0.00026,120]
[338364075,1726565640797,1378.94,0.00026,120]
[338364078,1726565641081,1378.94,0.00026,120]
[338364085,1726565641313,500.0,0.00026,120]
[338364087,1726565641348,1378.94,0.00026,120]
[338364094,1726565641616,1378.94,0.00026,120]
[338364099,1726565641784,2911.11,0.00026,120]
[338364102,1726565641841,500.0,0.00026,120]
[338364104,1726565641904,1378.94,0.00026,120]
[338364109,1726565642401,1378.94,0.00026,120]
[338364110,1726565642487,1378.94,0.00026,120]
[338364111,1726565642537,500.0,0.00026,120]
[338364112,1726565642689,5039.4,0.00026,120]
[338364113,1726565642731,1378.94,0.00026,120]
[338364114,1726565642971,1378.94,0.00026,120]
[338364121,1726565643271,1378.94,0.00026,120]
[338364126,1726565643529,1378.94,0.00026,120]
[338364134,1726565643846,1378.94,0.00026,120]
[338364138,1726565644068,500.0,0.00026,120]
[338364142,1726565644221,1378.94,0.00026,120]
[338364144,1726565644273,500.0,0.00026,120]
[338364148,1726565644390,1378.94,0.00026,120]
[338364156,1726565644679,1378.94,0.00026,120]
[338364160,1726565644794,675.47,0.00026,120]
[338364162,1726565644955,1378.94,0.00026,120]
[338364168,1726565645145,5006.62,0.00026,120]
[338364170,1726565645210,1379.14287099,0.00026,120]
[338364172,1726565645254,7547.91,0.00026,120]
[338364184,1726565646154,500.0,0.00026,120]
[338364186,1726565646449,1087.31,0.00026,120]
[338364195,1726565647149,500.0,0.00026,120]
[338364199,1726565647272,500.82107924,0.00026,120]
[338364200,1726565647337,1607.17,0.00026,120]
[338364204,1726565647653,2659.65,0.00026,120]
[338364205,1726565647746,922.59,0.00026,120]
[338364219,1726565649245,1912.76,0.00026,120]
[338364225,1726565649849,500.0,0.00026,120]
[338364235,1726565650497,500.0,0.00026,120]
[338364248,1726565650956,500.0,0.00026,120]
[338364295,1726565653808,500.0,0.00026,120]
[338364296,1726565653888,1315.09,0.00026,120]
[338364297,1726565654049,500.0,0.00026,120]
[338364319,1726565655223,163.61183862,0.00026,120]
[338364331,1726565655977,500.0,0.00026,120]
[338364335,1726565656741,500.0,0.00026,120]
[338364336,1726565656788,500.0,0.00026,120]
[338364338,1726565657049,501.19218989,0.00026,120]
[338364342,1726565657718,509.69,0.00026,120]
[338364344,1726565657762,500.0,0.00026,120]
[338364350,1726565658125,500.0,0.00026,120]
[338364356,1726565658522,500.0,0.00026,120]
[338364358,1726565658622,500.0,0.00026,120]
[338364366,1726565658898,500.0,0.00026,120]
[338364395,1726565660171,804.49,0.00026,120]
[338364396,1726565660247,500.0,0.00026,120]
[338364416,1726565661361,500.0,0.00026,120]
[338364429,1726565661787,536.35,0.00026,120]
[338364446,1726565662628,500.73140609,0.00026,120]
[338364448,1726565662702,500.51353809,0.00026,120]
[338364451,1726565662924,1879.87,0.00026,120]
[338364455,1726565663058,500.0,0.00026,120]
[338364472,1726565663826,500.0,0.00026,120]
[338364474,1726565663878,1721.53,0.00026,120]
[338364478,1726565664266,500.0,0.00026,120]
[338364479,1726565664645,500.0,0.00026,120]
[338364492,1726565665571,500.0,0.00026,120]
[338364498,1726565665883,500.0,0.00026,120]
[338364502,1726565666123,500.0,0.00026,120]
[338364503,1726565666212,500.0,0.00026,120]
[338364510,1726565666565,3365.09,0.00026,120]
[338364531,1726565667528,500.54541962,0.00026,120]
[338364534,1726565667604,500.0,0.00026,120]
[338364546,1726565668301,620.58730387,0.00026,120]
[338364547,1726565668498,500.0,0.00026,120]
[338364553,1726565668745,13003.76,0.00026,120]
[338364564,1726565669299,500.0,0.00026,120]
[338364568,1726565669488,280.33663115,0.00026,120]
[338364574,1726565669775,500.0,0.00026,120]
[338364589,1726565670659,500.0,0.00026,120]
[338364598,1726565671166,500.0,0.00026,120]
[338364599,1726565671211,500.0,0.00026,120]
[338364601,1726565671266,998.13,0.00026,120]
[338364605,1726565671400,500.0,0.00026,120]
[338364614,1726565672165,1568.18,0.00026,120]
[338364623,1726565672730,500.0,0.00026,120]
[338364644,1726565673830,1236.74,0.00026,120]
[338364653,1726565674269,578.69081158,0.00026,120]
[338364654,1726565674319,887.99,0.00026,120]
[338364656,1726565674364,501.8423308,0.00026,120]
[338364659,1726565674545,3248.88,0.00026,120]
[338364661,1726565674587,1930.48,0.00026,120]
[338364669,1726565674990,2771.83,0.00026,120]
[338364670,1726565675940,501.1303324,0.00026,120]
[338364671,1726565677071,387.64963909,0.00026,120]
[338364679,1726565677950,500.0,0.00026,120]
[338364681,1726565678309,1658.48,0.00026,120]
[338364683,1726565678394,2043.16,0.00026,120]
[338364687,1726565678684,969.05,0.00026,120]
[338364691,1726565678866,500.0,0.00026,120]
[338364699,1726565679344,508.90276433,0.00026,120]